bitfinex-derivatives/quotes_ETHF0:USTF0_20251126
["timestamp","ask_amount","ask_price","bid_price","bid_amount"]
[1764117312620,0.2912,2959.0,2958.8,0.81466064]
[1764117315929,0.4783,2958.9,2958.8,0.81466064]
[1764117316130,0.4507,2958.7,2958.6,0.81466064]
[1764117317230,0.2912,2959.0,2958.6,0.81466064]
[1764117318231,0.7846645,2958.9,2958.6,0.81466064]
[1764117318532,0.7846645,2958.8,2958.6,0.81466064]
[1764117318829,0.2912,2959.0,2958.6,0.81466064]
[1764117319129,0.78466464,2958.9,2958.6,0.81466064]
[1764117319330,0.78466464,2958.8,2958.6,0.81466064]
[1764117319624,0.78466464,2958.8,2957.8,0.0033793]
[1764117319625,0.7224,2958.5,2958.4,4.65066064]
[1764117319819,0.7224,2958.5,2958.4,0.81466064]
[1764117320021,1.50702269,2958.5,2958.2,0.81466064]
[1764117320218,0.4507,2958.3,2958.2,0.81466064]
[1764117322230,0.2717,2958.0,2957.9,3.836]
[1764117322529,0.2717,2958.5,2957.9,3.836]
[1764117322728,0.2717,2958.0,2957.9,3.836]
[1764117323332,0.2717,2958.0,2957.9,4.65066064]
[1764117326825,0.7224,2958.0,2957.9,4.65066064]
[1764117327232,1.50757203,2958.0,2957.9,4.65066064]
[1764117327937,1.05687203,2958.0,2957.9,4.65066064]
[1764117332038,1.50757203,2958.0,2957.9,4.65066064]
[1764117332534,1.05687203,2958.0,2957.9,4.65066064]
[1764117333127,0.78517203,2958.0,2957.9,4.65066064]
[1764117333333,0.2717,2958.5,2957.9,5.46532128]
[1764117333534,0.2717,2958.5,2958.3,0.81466064]
[1764117333739,0.2912,2959.0,2958.3,1.62932128]
[1764117333938,0.2912,2959.0,2958.9,0.81466064]
[1764117334838,0.7419,2959.0,2958.9,0.81466064]
[1764117335629,0.7419,2959.0,2958.7,0.81466064]
[1764117335931,0.4507,2958.8,2958.7,0.81466064]
[1764117342939,0.4638,2957.9,2957.8,0.0033793]
[1764117343144,0.4638,2957.9,2957.8,0.81803994]
[1764117345136,0.2702,2958.0,2957.8,0.81803994]
[1764117345338,0.78427929,2957.9,2957.8,0.81803994]
[1764117346636,0.78427929,2957.9,2957.8,0.0033793]
[1764117346844,1.24807929,2957.9,2957.8,0.81803994]
[1764117348445,0.78427929,2957.9,2957.8,0.81803994]
[1764117348648,1.81836322,2959.1,2958.0,0.1691]
[1764117348843,2.10536322,2959.5,2958.2,1.82077655]
[1764117349142,0.2702,2960.0,2959.1,1.82077655]
[1764117349340,0.2702,2960.0,2958.8,1.82077655]
[1764117349535,0.169,2959.9,2958.6,1.82077655]
[1764117349839,1.81836322,2959.8,2958.3,0.81466064]
[1764117350038,0.00506884,2959.3,2958.3,0.81466064]
[1764117350239,0.46886884,2959.3,2959.2,0.81466064]
[1764117350543,0.46886884,2959.3,2958.7,1.2216989]
[1764117351642,0.2702,2959.0,2958.7,1.2216989]
[1764117352037,0.00506884,2959.3,2958.7,1.2216989]
[1764117353333,0.00310783,2959.8,2959.1,1.2216989]
[1764117353548,0.00310783,2959.8,2959.7,1.2216989]
[1764117355837,1.81836322,2960.8,2959.7,1.2216989]
[1764117356144,2.08856322,2961.0,2959.7,1.2216989]
[1764117356344,0.2702,2961.5,2960.6,1.2216989]
[1764117356649,0.2702,2961.5,2961.0,1.2216989]
[1764117356846,0.27825331,2961.5,2961.0,1.22575364]
[1764117358442,0.27825331,2961.5,2961.0,0.00405474]
[1764117360854,0.27825331,2961.5,2961.0,1.22575364]
[1764117361151,0.4638,2961.1,2961.0,0.00405474]
[1764117361350,0.27825331,2961.5,2961.0,0.00405474]
[1764117366252,0.4541,2961.1,2961.0,0.00405474]
[1764117366449,0.27825331,2961.5,2960.3,1.78228524]
[1764117366450,0.4541,2960.4,2960.3,1.78228524]
[1764117367555,0.4541,2960.4,2960.3,1.78516163]
[1764117369158,0.4541,2960.4,2960.3,0.00287639]
[1764117369856,0.2957,2960.5,2960.3,0.00287639]
[1764117370154,0.4541,2960.4,2960.3,0.00287639]
[1764117370555,0.2957,2960.5,2960.3,0.00287639]
[1764117371559,0.4541,2960.4,2960.3,0.00287639]
[1764117375461,0.62307,2960.4,2960.3,0.00287639]
[1764117375659,0.4562,2959.6,2959.5,0.00506884]
[1764117375962,0.3653,2959.6,2959.5,0.00506884]
[1764117376566,0.3653,2959.6,2959.5,0.00903506]
[1764117377966,0.00506884,2959.8,2959.5,0.00903506]
[1764117380658,0.27,2960.0,2959.5,1.39261281]
[1764117381770,0.27506884,2960.0,2959.5,1.39261281]
[1764117382071,0.27506884,2960.0,2959.5,0.00903506]
[1764117386069,0.4562,2959.6,2959.5,0.00903506]
[1764117387666,0.27506884,2960.0,2959.5,0.00903506]
[1764117387866,0.4562,2959.6,2959.5,0.00903506]
[1764117391973,1.2259834,2959.6,2959.5,0.00903506]
[1764117396277,2.13021997,2959.6,2959.5,0.00903506]
[1764117398383,1.2259834,2959.6,2959.5,0.00903506]
[1764117402187,1.2259834,2959.6,2958.7,1.38357775]
[1764117402188,0.7491,2959.0,2958.9,3.836]
[1764117402385,0.34328581,2959.0,2958.9,3.836]
[1764117402590,0.2929,2959.5,2958.9,3.836]
[1764117402789,0.2929,2959.0,2958.9,3.836]
[1764117403277,0.29618618,2959.0,2958.9,5.66102699]
[1764117403473,0.29618618,2959.0,2958.9,3.84025044]
[1764117404384,0.2929,2959.0,2958.9,5.66102699]
[1764117404582,0.2929,2959.5,2958.9,5.66102699]
[1764117405388,0.29612305,2959.5,2958.9,5.66102699]
[1764117406886,0.2929,2959.0,2958.9,5.66102699]
[1764117407286,0.29612305,2959.5,2958.9,5.66102699]
[1764117407489,0.29612305,2959.5,2958.9,1.82502699]
[1764117409386,0.74212305,2959.5,2958.9,1.82502699]
[1764117410592,0.74212305,2959.5,2959.0,1.82077655]
[1764117410891,0.74212305,2959.5,2958.9,1.82502699]
[1764117411292,0.74212305,2959.5,2959.0,1.82077655]
[1764117412193,0.29612305,2959.5,2959.0,1.82077655]
[1764117412697,0.74212305,2959.5,2959.0,1.82077655]
[1764117412891,0.74212305,2959.5,2959.2,1.82077655]
[1764117413196,0.62925241,2959.5,2959.4,0.1558]
[1764117413492,0.27506884,2960.0,2959.9,0.1558]
[1764117413892,0.00506884,2960.0,2959.9,0.1558]
[1764117414090,0.00877272,2960.0,2959.9,0.1558]
[1764117414285,0.74767272,2960.0,2959.9,0.1558]
[1764117414593,0.74767272,2960.0,2959.6,3.20308135]
[1764117414895,0.24767272,2960.0,2959.6,1.38357775]
[1764117415096,0.04087272,2960.0,2959.9,0.4748]
[1764117415391,0.48687272,2960.0,2959.9,0.4748]
[1764117415897,0.49086682,2960.0,2959.9,0.4748]
[1764117416296,0.49086682,2960.0,2959.5,2.0715036]
[1764117416493,0.49086682,2960.0,2959.7,0.81405844]
[1764117417091,0.446,2959.6,2959.5,1.8195036]
[1764117417292,0.446,2959.4,2959.3,2.2943036]
[1764117417690,0.04486682,2960.0,2959.4,0.4748]
[1764117417891,0.446,2959.5,2959.4,0.4748]
[1764117419196,0.446,2959.3,2959.1,1.8195036]
[1764117419498,0.446,2959.2,2959.1,2.2943036]
[1764117420801,0.446,2959.2,2959.1,1.8195036]
[1764117420995,0.7571,2959.0,2958.9,0.00425044]
[1764117421200,0.4764,2959.0,2958.9,0.47885044]
[1764117421498,1.20348415,2959.5,2959.0,0.2873]
[1764117421699,0.77308784,2959.4,2959.0,0.2873]
[1764117421996,1.24948784,2959.3,2959.2,0.4746]
[1764117422197,0.4764,2959.1,2959.0,0.7619]
[1764117422395,0.4764,2959.1,2959.0,0.4746]
[1764117422905,0.4764,2959.0,2958.9,0.00425044]
[1764117423093,0.07058103,2959.0,2958.9,0.47885044]
[1764117423290,0.4764,2959.1,2959.0,0.7619]
[1764117424699,0.4764,2959.0,2958.9,0.00425044]
[1764117424902,0.4764,2959.0,2958.9,0.47885044]
[1764117425798,0.715,2959.0,2958.9,0.00425044]
[1764117426003,0.4764,2958.8,2958.7,0.00506884]
[1764117426204,0.4764,2958.1,2958.0,0.2477]
[1764117426503,0.4764,2957.9,2957.8,0.4746]
[1764117427098,0.00374588,2957.9,2957.8,0.47870683]
[1764117427293,0.00506884,2958.1,2958.0,0.7619]
[1764117428207,0.00927143,2958.1,2958.0,0.7619]
[1764117428901,0.48567143,2958.1,2958.0,0.7619]
[1764117430107,0.00927143,2958.1,2958.0,0.7619]
[1764117432797,0.2386,2959.0,2958.0,0.7619]
[1764117433003,1.23120293,2958.9,2958.8,0.4451]
[1764117433710,1.2335939,2958.9,2958.8,0.4451]
[1764117433911,1.2335939,2958.9,2958.5,0.2922]
[1764117434109,0.46329097,2958.9,2958.5,0.2922]
[1764117435213,0.4609,2958.6,2958.5,0.7373]
[1764117435614,0.00239097,2958.9,2958.5,0.7373]
[1764117436715,0.4351,2958.6,2958.5,0.7373]
[1764117437310,0.00239097,2958.9,2958.8,0.4451]
[1764117438210,0.43749097,2958.9,2958.5,0.2922]
[1764117438412,0.4351,2958.6,2958.5,0.7373]
[1764117438812,0.00239097,2958.9,2958.8,0.4451]
[1764117440522,0.43749097,2958.9,2958.8,0.81465611]
[1764117440817,0.4351,2958.7,2958.6,0.81465611]
[1764117441006,0.4351,2958.7,2958.6,1.25975611]
[1764117441211,0.43749097,2958.9,2958.8,0.4451]
[1764117441412,0.43749097,2958.9,2958.8,1.25975611]
[1764117441920,0.43749097,2958.9,2958.8,0.81465611]
[1764117443416,0.43749097,2958.9,2958.8,1.25975611]
[1764117444315,1.20792099,2958.9,2958.8,1.25975611]
[1764117444714,0.16911,2957.9,2957.8,0.00410683]
[1764117444922,0.98377611,2957.9,2957.6,0.00506884]
[1764117445122,0.81465611,2957.5,2957.0,0.2873]
[1764117445316,0.77081604,2957.4,2957.0,0.2873]
[1764117445516,1.07786425,2957.7,2957.0,1.10195611]
[1764117445817,0.77120221,2957.6,2957.0,1.10195611]
[1764117446024,0.77120221,2957.5,2957.0,1.11000616]
[1764117446623,0.77120221,2957.5,2957.0,0.29535005]
[1764117448920,0.77120221,2957.5,2957.4,0.4451]
[1764117449122,0.00506884,2957.6,2957.5,0.2922]
[1764117449321,0.77526918,2957.6,2957.5,0.2922]
[1764117453626,0.77526918,2957.6,2957.5,0.7373]
[1764117453930,0.77526918,2957.6,2957.5,0.2922]
[1764117454927,0.77526918,2957.6,2957.0,0.29535005]
[1764117455232,0.77020034,2957.5,2957.0,0.29535005]
[1764117455437,0.00506884,2957.6,2957.0,0.29535005]
[1764117455632,0.77001229,2957.5,2957.0,0.29535005]
[1764117455938,0.00506884,2957.6,2957.0,0.29535005]
[1764117456239,0.77001229,2957.5,2957.0,0.29535005]
[1764117456440,0.00506884,2957.6,2957.5,0.2922]
[1764117456639,0.77498268,2957.6,2957.5,0.2922]
[1764117457745,0.77498268,2957.6,2957.5,0.7373]
[1764117457943,0.77498268,2957.6,2957.5,0.2922]
[1764117458345,0.77498268,2957.6,2957.5,0.7373]
[1764117460646,0.77498268,2957.6,2957.5,0.2922]
[1764117461547,0.00506884,2957.6,2957.5,0.7373]
[1764117464249,0.77610415,2957.6,2957.5,0.7373]
[1764117465645,0.00506884,2957.6,2957.5,0.7373]
[1764117468344,0.77688944,2957.6,2957.5,0.2927]
[1764117468648,0.77688944,2957.6,2957.5,0.7738]
[1764117469442,0.77688944,2957.6,2957.5,1.58924627]
[1764117472947,0.77688944,2957.6,2957.5,0.7738]
[1764117473150,1.68562369,2957.6,2957.5,1.58924627]
[1764117473354,0.77688944,2957.6,2957.5,1.58924627]
[1764117477362,1.18932898,2957.6,2957.5,1.58924627]
[1764117477544,1.208425,2957.8,2957.7,0.4811]
[1764117477751,1.208425,2957.8,2957.7,1.29654627]
[1764117478657,1.208425,2957.9,2957.8,0.4811]
[1764117480156,1.208425,2957.9,2957.6,3.836]
[1764117480353,1.208425,2957.7,2957.6,3.836]
[1764117480554,1.81836322,2957.8,2957.6,3.836]
[1764117482262,1.81836322,2957.8,2957.5,0.2927]
[1764117482464,1.21659631,2957.6,2957.1,0.81544627]
[1764117482666,1.21659631,2957.6,2957.5,0.2706]
[1764117483657,1.21659631,2957.6,2957.5,0.7193]
[1764117485461,1.81836322,2957.7,2957.5,0.2706]
[1764117486370,1.81836322,2957.7,2957.6,0.4487]
[1764117486664,1.21678774,2957.7,2957.6,0.4487]
[1764117487567,1.21678774,2957.8,2957.7,0.4487]
[1764117487760,1.21678774,2957.8,2957.7,1.26414627]
[1764117488556,1.81836322,2957.9,2957.8,0.4487]
[1764117488769,0.00506884,2958.0,2957.9,0.4487]
[1764117488968,0.00506884,2958.0,2957.9,1.26414627]
[1764117489264,1.81836322,2958.4,2958.3,0.4487]
[1764117489464,1.81836322,2958.6,2958.5,0.7193]
[1764117489663,2.31176322,2958.6,2958.5,1.53474627]
[1764117489864,0.4934,2958.6,2958.5,1.53474627]
[1764117492656,0.4934,2958.6,2958.5,0.81544627]
[1764117493064,0.00506883,2958.8,2958.5,1.54454627]
[1764117493269,0.00506883,2958.8,2958.7,0.4611]
[1764117493462,0.47206883,2958.8,2958.7,1.27654627]
[1764117494763,0.467,2957.9,2957.8,1.21484564]
[1764117494968,0.467,2957.8,2957.5,1.48544564]
[1764117495168,0.467,2957.6,2957.5,0.7317]
[1764117495367,0.2748,2958.0,2957.5,1.54714627]
[1764117495562,0.467,2957.9,2957.8,1.27654627]
[1764117496271,0.1691,2958.2,2957.5,0.7317]
[1764117496272,0.467,2957.6,2957.5,0.7317]
[1764117496473,0.467,2957.6,2957.5,0.4611]
[1764117496677,0.467,2957.6,2957.2,0.81546579]
[1764117496969,0.467,2957.3,2957.2,1.27656579]
[1764117497170,0.2748,2958.0,2957.2,1.27656579]
[1764117497571,0.44391,2958.0,2957.2,1.27656579]
[1764117497768,0.467,2957.3,2957.2,1.27656579]
[1764117498668,0.467,2957.3,2957.2,0.4611]
[1764117500273,0.16911,2957.9,2957.2,0.4611]
[1764117504875,0.63611,2957.9,2957.8,0.4611]
[1764117505078,0.2748,2958.0,2957.0,0.29535005]
[1764117505079,0.467,2957.1,2957.0,0.73715005]
[1764117505271,0.467,2957.1,2957.0,0.00805005]
[1764117506585,0.2748,2957.0,2956.5,0.268]
[1764117507075,0.467,2956.6,2956.5,0.7291]
[1764117507478,0.46953133,2956.6,2956.5,0.46515196]
[1764117509585,0.46953133,2956.6,2956.5,0.00405196]
[1764117511078,0.467,2956.4,2956.3,0.00506884]
[1764117512080,0.467,2956.4,2956.3,0.00900498]
[1764117515285,0.467,2956.4,2956.3,0.47010498]
[1764117515484,0.467,2956.4,2956.3,0.00900498]
[1764117521891,0.6362,2956.4,2956.3,0.00900498]
[1764117523298,0.491,2955.7,2955.6,1.2825115]
[1764117524298,0.16921,2956.3,2955.6,1.28575473]
[1764117524900,0.491,2955.7,2955.6,1.28575473]
[1764117525298,0.16922,2956.2,2955.6,1.28575473]
[1764117525604,0.66022,2956.2,2956.1,0.4663]
[1764117526611,0.66022,2956.2,2955.6,0.81945473]
[1764117527415,0.491,2955.7,2955.6,1.28575473]
[1764117527915,0.491,2955.7,2955.6,0.46954323]
[1764117528419,0.491,2955.7,2955.6,0.00324323]
[1764117529019,0.7663,2955.5,2954.7,0.8162115]
[1764117529729,0.491,2954.1,2953.7,1.21484564]
[1764117529915,0.491,2954.1,2953.6,0.8162115]
[1764117530228,0.49876091,2954.1,2953.7,0.8162115]
[1764117530416,0.49876091,2954.1,2953.7,1.2825115]
[1764117530417,0.491,2953.8,2953.7,1.2825115]
[1764117530611,0.491,2953.8,2953.6,0.00912447]
[1764117530816,0.45174,2954.0,2953.6,0.4663]
[1764117531019,0.16934,2954.0,2953.6,0.4663]
[1764117531211,0.491,2953.6,2953.4,0.8162115]
[1764117531414,0.491,2953.5,2953.4,1.2825115]
[1764117531725,0.45174,2954.0,2953.4,1.2825115]
[1764117532024,0.491,2953.5,2953.4,0.47019473]
[1764117532520,0.7663,2953.5,2953.4,0.00389473]
[1764117534023,0.491,2953.5,2953.4,0.00389473]
[1764117534525,0.66034,2953.9,2953.8,0.4663]
[1764117534711,0.49876091,2954.1,2954.0,0.4663]
[1764117534918,0.00776091,2954.1,2954.0,0.7347]
[1764117535817,0.00507803,2954.1,2954.0,6.7347]
[1764117536025,0.2748,2955.0,2954.0,6.7347]
[1764117536214,0.2748,2955.0,2954.0,0.7347]
[1764117536411,0.491,2955.0,2954.5,0.2684]
[1764117536616,0.491,2955.0,2954.9,0.4663]
[1764117536919,0.49373601,2955.0,2954.5,0.2684]
[1764117539026,0.49373601,2955.0,2954.9,0.4663]
[1764117539522,0.49373601,2955.0,2954.5,0.2684]
[1764117539719,0.491,2954.6,2954.0,0.2684]
[1764117540023,0.491,2954.6,2954.5,0.7347]
[1764117540223,0.27753601,2955.0,2954.5,0.7347]
[1764117540421,0.491,2954.6,2954.5,0.7347]
[1764117540727,0.491,2954.6,2954.0,0.2684]
[1764117541423,0.16929,2954.8,2954.0,0.2684]
[1764117541424,0.2756,2954.5,2954.0,0.7552]
[1764117541621,0.16929,2954.8,2954.0,0.7552]
[1764117542819,0.4905,2954.1,2954.0,0.4868]
[1764117543127,0.4905,2954.1,2953.5,0.2684]
[1764117543627,0.44491,2954.5,2954.0,0.7644]
[1764117543828,0.16931,2954.5,2954.0,0.7644]
[1764117545124,0.16931,2954.5,2954.4,0.4868]
[1764117546227,0.65981,2954.5,2954.4,0.4868]
[1764117546428,0.65981,2954.5,2954.0,0.2776]
[1764117547629,0.4905,2954.1,2954.0,0.7644]
[1764117547825,0.44491,2954.5,2954.0,0.7644]
[1764117548021,0.16931,2954.5,2954.0,0.7644]
[1764117549526,0.44491,2954.5,2954.0,0.7644]
[1764117550129,0.4905,2954.1,2954.0,0.7644]
[1764117550329,0.4905,2954.1,2954.0,0.4868]
[1764117550530,0.4905,2954.1,2953.5,0.2684]
[1764117552133,0.16932,2954.3,2954.0,0.7585]
[1764117552334,0.63652,2954.3,2954.2,0.4746]
[1764117553030,0.90248512,2954.7,2954.5,0.2839]
[1764117553230,0.4672,2954.6,2954.0,0.2839]
[1764117553430,1.07177512,2954.9,2954.0,0.2839]
[1764117553431,0.2723,2954.5,2954.0,0.2839]
[1764117554029,0.90248512,2954.7,2954.0,0.2839]
[1764117554231,1.07178512,2954.7,2954.0,0.2839]
[1764117554924,0.1693,2954.6,2954.0,0.2839]
[1764117555132,0.4672,2954.1,2953.5,0.2684]
[1764117555933,0.90248512,2954.2,2953.5,0.2684]
[1764117557034,1.36968512,2954.2,2954.1,0.4746]
[1764117557233,1.23344292,2954.2,2954.1,0.4746]
[1764117557433,1.23344292,2954.2,2953.5,0.2684]
[1764117557633,1.67416339,2954.1,2954.0,0.7585]
[1764117557942,1.37512047,2954.1,2954.0,0.7585]
[1764117558130,2.14136339,2954.1,2954.0,0.7585]
[1764117558333,1.23344292,2954.1,2954.0,0.7585]
[1764117558836,1.67505875,2954.1,2954.0,0.7585]
[1764117559240,0.90881583,2954.1,2954.0,0.7585]
[1764117559434,1.67505875,2954.1,2954.0,0.7585]
[1764117559639,1.972724,2954.2,2954.0,0.7585]
[1764117559943,0.90949132,2954.1,2954.0,0.7585]
[1764117560444,1.67573424,2954.1,2954.0,0.7585]
[1764117560634,0.90949132,2954.1,2954.0,0.7585]
[1764117560838,1.23344292,2954.1,2954.0,0.4746]
[1764117561441,1.23344292,2954.1,2954.0,0.7585]
[1764117561836,0.77917,2953.5,2953.4,0.00389473]
[1764117562137,0.77917,2953.5,2952.6,1.22611965]
[1764117562138,0.90884292,2953.5,2952.6,1.22611965]
[1764117562344,0.90860812,2953.3,2953.2,0.4746]
[1764117562539,0.90860812,2953.4,2953.3,0.4746]
[1764117562735,1.23438847,2953.4,2953.3,0.4746]
[1764117562946,1.23438847,2953.4,2953.3,0.00383159]
[1764117564240,2.14249905,2953.4,2953.3,0.00383159]
[1764117564445,0.4672,2953.2,2953.1,0.00507803]
[1764117564646,1.23438847,2953.2,2953.1,0.47967803]
[1764117564948,1.23438847,2953.2,2953.1,0.00507803]
[1764117565146,1.23438847,2953.2,2953.1,0.47967803]
[1764117565345,1.23438847,2953.2,2953.1,0.48357167]
[1764117565945,1.21655553,2953.6,2953.5,0.7585]
[1764117565946,0.00507803,2953.6,2953.5,0.7585]
[1764117566638,0.77155027,2953.6,2953.5,0.7585]
[1764117567751,1.23875027,2953.6,2953.5,0.7585]
[1764117568445,1.23875027,2953.6,2953.1,0.00897167]
[1764117568641,0.76647224,2953.5,2953.1,0.00897167]
[1764117568842,0.76647224,2953.4,2953.3,0.4746]
[1764117569944,1.23367224,2953.4,2953.1,0.00897167]
[1764117570248,0.76647224,2953.3,2953.2,0.4746]
[1764117571351,0.00507803,2953.6,2953.5,0.4746]
[1764117571555,0.77135133,2953.6,2953.5,0.7585]
[1764117574648,0.4672,2954.0,2953.9,0.4746]
[1764117575346,1.2339522,2954.0,2953.9,0.4746]
[1764117576248,0.7667522,2954.0,2953.9,0.4746]
[1764117576554,1.2339522,2954.0,2953.9,0.4746]
[1764117576851,0.7667522,2954.0,2953.9,0.4746]
[1764117577355,0.4672,2954.0,2953.9,0.4746]
[1764117577544,1.2339522,2954.0,2953.9,0.4746]
[1764117577740,0.4672,2953.2,2953.1,0.48357167]
[1764117577947,0.16937,2953.5,2953.4,0.4746]
[1764117578444,0.76680228,2953.5,2953.4,0.4746]
[1764117578647,0.76680228,2953.5,2953.1,1.23509132]
[1764117578845,0.76680228,2953.4,2953.3,0.4746]
[1764117579050,0.90818253,2953.7,2953.3,0.4746]
[1764117579551,1.67498481,2953.6,2953.3,0.4746]
[1764117579746,0.4672,2953.4,2953.3,0.4746]
[1764117579941,1.23400228,2953.4,2953.3,0.4746]
[1764117580644,0.76680228,2953.4,2953.3,0.4746]
[1764117580951,1.37538253,2953.6,2953.5,0.4746]
[1764117581251,2.14232506,2953.6,2953.5,0.4746]
[1764117581753,2.14232506,2953.6,2953.1,1.23509132]
[1764117581947,1.21354253,2953.5,2953.4,0.4808]
[1764117582354,1.21354253,2953.5,2953.1,1.23509132]
[1764117582546,1.21354253,2953.4,2953.3,0.4808]
[1764117582850,0.4466,2953.2,2953.1,0.48977167]
[1764117583050,1.35478253,2953.6,2953.5,0.4808]
[1764117583251,2.12179104,2953.6,2953.1,0.00897167]
[1764117583445,0.76700851,2953.5,2953.1,0.00897167]
[1764117583647,0.76700851,2953.4,2953.1,0.00897167]
[1764117583852,1.21360851,2953.4,2953.3,0.4808]
[1764117584556,0.76700851,2953.4,2953.3,0.4808]
[1764117584852,0.76700851,2953.4,2953.1,1.23509132]
[1764117584853,0.90818253,2953.7,2953.6,0.4808]
[1764117585150,0.4466,2953.7,2953.6,0.4808]
[1764117585351,0.4466,2953.6,2953.5,0.75]
[1764117585549,1.35585094,2953.6,2953.5,0.75]
[1764117586050,2.12318833,2953.6,2953.5,0.75]
[1764117586855,0.76733739,2953.6,2953.5,0.75]
[1764117587055,1.67690237,2953.7,2953.6,0.4808]
[1764117587247,0.90925094,2953.7,2953.6,0.4808]
[1764117587553,1.67690237,2953.8,2953.7,0.4808]
[1764117587749,1.67700539,2953.8,2953.7,0.4808]
[1764117588053,2.12360539,2953.8,2953.7,0.4808]
[1764117588949,0.4466,2953.6,2953.1,0.00897167]
[1764117589148,0.90940769,2953.6,2953.1,0.00897167]
[1764117589453,0.2843,2953.5,2953.1,0.00897167]
[1764117589755,0.76775445,2953.4,2953.1,0.00897167]
[1764117589953,0.76775445,2953.4,2953.3,0.4808]
[1764117589954,1.21435445,2953.4,2953.3,0.4808]
[1764117590355,0.4466,2953.2,2953.1,0.48977167]
[1764117590756,1.21450124,2953.2,2953.1,0.00897167]
[1764117590957,2.12390893,2953.2,2953.1,0.00897167]
[1764117594964,2.42541129,2953.2,2953.1,0.00897167]
[1764117595261,0.4466,2952.6,2952.5,0.4808]
[1764117595663,1.21477376,2952.6,2952.5,0.4808]
[1764117595856,0.4466,2952.5,2952.4,1.70691965]
[1764117596360,0.44998692,2952.5,2952.4,1.71121872]
[1764117596863,1.21787194,2952.5,2952.4,1.71121872]
[1764117597259,1.21787194,2952.5,2951.6,2.56890972]
[1764117597260,0.4466,2951.8,2951.7,1.82306781]
[1764117597465,1.35662677,2952.0,2951.9,0.4808]
[1764117597963,0.4466,2951.7,2951.6,1.22611965]
[1764117598156,0.4466,2951.7,2951.0,2.09226781]
[1764117598157,0.4466,2951.7,2951.1,1.22611965]
[1764117598356,0.45167803,2951.7,2951.6,0.00312504]
[1764117598551,0.00507803,2951.7,2951.6,0.48392504]
[1764117598757,0.00507803,2951.7,2951.6,0.48900307]
[1764117599662,0.45167803,2951.7,2951.6,0.48900307]
[1764117599861,0.00507803,2951.7,2951.6,0.48900307]
[1764117600064,0.45167803,2951.7,2951.6,0.48900307]
[1764117600364,1.21727544,2951.7,2951.6,0.00820307]
[1764117600765,1.21727544,2951.7,2951.6,0.48900307]
[1764117601164,1.21727544,2951.7,2951.1,1.22951117]
[1764117601165,0.4709,2951.2,2951.1,0.00339152]
[1764117601359,3.005e-05,2951.9,2951.5,0.1491]
[1764117601563,0.28298692,2952.5,2951.8,1.22611965]
[1764117601766,0.28298692,2952.5,2952.4,1.22611965]
[1764117601965,0.75388692,2952.5,2952.1,1.22611965]
[1764117602165,0.28298692,2952.5,2952.1,1.23001872]
[1764117603174,0.4709,2952.2,2952.1,1.23001872]
[1764117603672,0.28298692,2952.5,2952.1,1.23001872]
[1764117603970,0.4709,2952.2,2952.1,1.23001872]
[1764117604167,0.4709,2952.2,2952.1,0.00389907]
[1764117605366,0.28298692,2952.5,2952.1,0.00389907]
[1764117606368,0.4709,2952.2,2952.1,0.00389907]
[1764117607475,0.28298692,2952.5,2952.1,1.23001872]
[1764117610070,0.2748,2953.0,2952.1,1.23001872]
[1764117610372,0.7457,2953.0,2952.9,1.22611965]
[1764117610567,0.2748,2953.0,2952.9,1.22611965]
[1764117610978,0.2748,2953.0,2952.4,1.2128497]
[1764117611178,0.2837671,2953.0,2952.9,1.22611965]
[1764117611773,0.2723,2954.0,2952.9,1.22611965]
[1764117611978,0.2723,2954.0,2953.3,1.22611965]
[1764117612979,0.4718,2953.4,2953.3,1.22611965]
[1764117615080,0.285,2953.0,2952.8,1.22611965]
[1764117615281,0.285,2952.5,2952.4,2.44404738]
[1764117615486,0.285,2952.5,2952.4,1.23119768]
[1764117615879,0.285,2953.0,2952.8,1.22611965]
[1764117616579,0.4718,2952.9,2952.8,1.22611965]
[1764117618680,0.4718,2952.9,2952.5,1.3902573]
[1764117618884,0.285,2953.0,2952.5,5.2262573]
[1764117620283,0.4718,2952.6,2952.5,5.2262573]
[1764117620486,0.285,2953.0,2952.5,5.2262573]
[1764117624788,0.285,2953.0,2952.6,3.836]
[1764117624989,0.285,2953.0,2952.5,1.3902573]
[1764117625188,0.7568,2953.0,2952.5,1.3902573]
[1764117626490,0.4718,2952.6,2952.5,1.3902573]
[1764117626884,0.4718,2952.6,2952.5,1.4265573]
[1764117627390,0.4718,2952.6,2952.5,0.0363]
[1764117628291,0.7568,2952.5,2952.4,0.00507803]
[1764117632391,0.4718,2952.2,2951.7,2.603107]
[1764117632594,0.4718,2951.7,2951.6,0.4849]
[1764117632796,0.285,2951.5,2951.4,1.6977497]
[1764117632995,0.285,2952.0,2951.4,1.6977497]
[1764117633388,0.7568,2951.5,2951.4,0.4849]
[1764117633691,0.76187803,2952.0,2951.9,0.4849]
[1764117633890,0.00507803,2952.0,2951.9,0.4849]
[1764117634189,0.7568,2951.5,2951.4,0.49324219]
[1764117635297,0.7568,2951.5,2951.4,0.00834219]
[1764117636285,0.285,2951.5,2951.4,0.00834219]
[1764117636482,0.285,2951.5,2951.4,0.49324219]
[1764117637097,0.7568,2951.5,2951.4,0.00834219]
[1764117637287,0.7568,2951.5,2951.4,0.49324219]
[1764117638990,0.285,2951.5,2951.4,0.49324219]
[1764117639395,0.7568,2951.5,2951.4,0.49324219]
[1764117640396,0.29007803,2952.0,2951.4,0.49324219]
[1764117640704,0.29007803,2952.0,2951.9,0.4849]
[1764117641398,0.76187803,2952.0,2951.9,0.4849]
[1764117642102,0.00507803,2952.0,2951.9,0.4849]
[1764117643298,0.78467803,2952.0,2951.9,0.4849]
[1764117643495,0.00507803,2952.0,2951.9,0.4849]
[1764117645403,0.29547803,2952.0,2951.9,0.4849]
[1764117645604,0.78467803,2952.0,2951.9,0.4849]
[1764117646096,0.31137803,2952.0,2951.9,0.4849]
[1764117646403,0.60177803,2952.0,2951.9,0.4849]
[1764117647605,0.31137803,2952.0,2951.9,0.4849]
[1764117647800,0.00507803,2952.2,2952.1,0.4777]
[1764117648210,0.49427803,2952.2,2952.1,0.4777]
[1764117648403,0.49427803,2952.2,2951.4,0.00834219]
[1764117648404,0.7796,2951.5,2951.4,0.00834219]
[1764117649306,0.7796,2951.5,2951.4,0.48604219]